bitfinex/quotes_BTCUSD_20250601
["timestamp","ask_amount","ask_price","bid_price","bid_amount"]
[1748736205782,0.01605687,104610.0,104600.0,0.64056515]
[1748736206419,0.01605687,104610.0,104600.0,0.64952483]
[1748736206609,0.01605687,104610.0,104600.0,0.27472451]
[1748736206852,0.01605687,104610.0,104600.0,0.26576489]
[1748736207239,0.01605687,104610.0,104600.0,0.27472474]
[1748736207441,0.01605687,104610.0,104600.0,0.25680515]
[1748736208069,0.01605687,104610.0,104600.0,0.26576494]
[1748736208293,0.01605687,104610.0,104600.0,0.25680515]
[1748736208294,0.02561572,104610.0,104600.0,0.25680515]
[1748736208733,0.03517485,104610.0,104600.0,0.25680515]
[1748736209356,0.02561572,104610.0,104600.0,0.26576532]
[1748736209839,0.00649829,104610.0,104600.0,0.28368566]
[1748736210021,0.01605687,104610.0,104600.0,0.25680515]
[1748736210866,0.02561563,104610.0,104600.0,0.25680515]
[1748736211294,0.02561563,104610.0,104600.0,0.28368554]
[1748736211524,0.04473361,104610.0,104600.0,0.25680515]
[1748736211736,0.04473361,104610.0,104600.0,0.2747254]
[1748736211962,0.04473352,104610.0,104600.0,0.26576527]
[1748736212187,0.04473352,104610.0,104600.0,0.2747254]
[1748736212435,0.04473352,104610.0,104600.0,0.26576546]
[1748736212863,0.03517448,104610.0,104600.0,0.28368606]
[1748736213075,0.04473352,104610.0,104600.0,0.26576545]
[1748736213495,0.03517448,104610.0,104600.0,0.26576545]
[1748736213756,0.04473352,104610.0,104600.0,0.29264638]
[1748736213963,0.04473352,104610.0,104600.0,0.27472576]
[1748736214188,0.04473352,104610.0,104600.0,0.26576545]
[1748736214611,0.04473352,104610.0,104600.0,0.27472576]
[1748736214812,0.04473352,104610.0,104600.0,0.29264639]
[1748736215031,0.04473352,104610.0,104600.0,0.29264644]
[1748736215233,0.04473352,104610.0,104600.0,0.27472576]
[1748736215451,0.04473352,104610.0,104600.0,0.2836861]
[1748736215669,0.04473352,104610.0,104600.0,0.29264644]
[1748736215883,0.04473352,104610.0,104600.0,0.27472576]
[1748736216091,0.04473352,104610.0,104600.0,0.29264643]
[1748736216306,0.03517448,104610.0,104600.0,0.28368618]
[1748736216514,0.03517448,104610.0,104600.0,0.27472576]
[1748736216728,0.04473361,104610.0,104600.0,0.27472576]
[1748736217029,0.04473352,104610.0,104600.0,0.27472576]
[1748736217240,0.04473352,104610.0,104600.0,0.29264662]
[1748736217444,0.03517448,104610.0,104600.0,0.28368619]
[1748736217704,0.03517448,104610.0,104600.0,0.27472576]
[1748736218125,0.03517448,104610.0,104600.0,0.27895631]
[1748736218467,0.03517448,104610.0,104600.0,0.28791677]
[1748736218669,0.36497157,104610.0,104600.0,0.26939664]
[1748736218957,0.36497157,104610.0,104600.0,0.28791726]
[1748736218958,0.36317486,104610.0,104600.0,0.28791726]
[1748736219162,0.36317486,104610.0,104600.0,0.27895641]
[1748736220189,0.36317486,104610.0,104600.0,0.29687817]
[1748736220392,0.36317486,104610.0,104600.0,0.28851609]
[1748736220792,0.36317486,104610.0,104600.0,0.27835752]
[1748736220988,0.3536161,104610.0,104600.0,0.26939664]
[1748736221185,0.3536161,104610.0,104600.0,0.29687818]
[1748736221445,0.3536161,104610.0,104600.0,0.30583906]
[1748736221890,0.3536161,104610.0,104600.0,0.29687818]
[1748736222595,0.3536161,104610.0,104600.0,0.31480013]
[1748736222728,0.3536161,104610.0,104600.0,0.31480014]
[1748736222928,0.3536161,104610.0,104600.0,0.29687818]
[1748736223179,0.3536161,104610.0,104600.0,0.31480014]
[1748736223378,0.3536161,104610.0,104600.0,0.29687818]
[1748736223786,0.3536161,104610.0,104600.0,0.31480025]
[1748736224771,0.3536161,104610.0,104600.0,0.32376128]
[1748736224971,0.3536161,104610.0,104600.0,0.31420151]
[1748736225249,0.3536161,104610.0,104600.0,0.31480025]
[1748736225690,0.3536161,104610.0,104600.0,0.32376128]
[1748736225890,0.3536161,104610.0,104600.0,0.33272232]
[1748736226042,0.3536161,104610.0,104600.0,0.31480025]
[1748736226243,0.3536161,104610.0,104600.0,0.33272232]
[1748736226444,0.16242979,104610.0,104600.0,0.31480025]
[1748736226671,0.1642265,104610.0,104600.0,0.35124287]
[1748736226873,0.1642265,104610.0,104600.0,0.32435983]
[1748736227683,0.1642265,104610.0,104600.0,0.33332079]
[1748736227886,0.1642265,104610.0,104600.0,0.3040425]
[1748736227887,0.35541281,104610.0,104600.0,0.3040425]
[1748736228106,0.3536161,104610.0,104600.0,0.30524075]
[1748736228734,0.3536161,104610.0,104600.0,0.32316308]
[1748736228980,0.3536161,104610.0,104600.0,0.30524075]
[1748736229421,0.3536161,104610.0,104600.0,0.33212424]
[1748736229640,0.3536161,104610.0,104600.0,0.36020504]
[1748736229853,0.3536161,104610.0,104600.0,0.35184239]
[1748736230071,0.3536161,104610.0,104600.0,0.37872563]
[1748736230287,0.3536161,104610.0,104600.0,0.35184239]
[1748736230487,0.3536161,104610.0,104600.0,0.37872563]
[1748736230711,0.3536161,104610.0,104600.0,0.36916595]
[1748736230917,0.3536161,104610.0,104600.0,0.35960627]
[1748736231133,0.3536161,104610.0,104600.0,0.33272303]
[1748736231341,0.3536161,104610.0,104600.0,0.35064536]
[1748736231571,0.3536161,104610.0,104600.0,0.33272303]
[1748736232483,0.3536161,104610.0,104600.0,0.34168419]
[1748736232694,0.3536161,104610.0,104600.0,0.33272303]
[1748736232940,0.3536161,104610.0,104600.0,0.34168419]
[1748736233145,0.3536161,104610.0,104600.0,0.33272303]
[1748736233681,0.3536161,104610.0,104600.0,0.34168419]
[1748736233880,0.3536161,104610.0,104600.0,0.33272303]
[1748736234305,0.3536161,104610.0,104600.0,0.35960652]
[1748736234501,0.3536161,104610.0,104600.0,0.33272303]
[1748736234726,0.3536161,104610.0,104600.0,0.36916629]
[1748736234929,0.3536161,104610.0,104600.0,0.34168419]
[1748736235103,0.3386161,104610.0,104600.0,0.35960648]
[1748736235313,0.3222161,104610.0,104600.0,0.35960648]
[1748736235514,0.3222161,104610.0,104600.0,0.34168418]
[1748736235922,0.3222161,104610.0,104600.0,0.35960648]
[1748736236164,0.3222161,104610.0,104600.0,0.35064533]
[1748736236306,0.3222161,104610.0,104600.0,0.33272303]
[1748736236720,0.3222161,104610.0,104600.0,0.35004599]
[1748736236918,0.31265725,104610.0,104600.0,0.34168397]
[1748736237128,0.31265725,104610.0,104600.0,0.33272303]
[1748736237335,0.31265725,104610.0,104600.0,0.35960589]
[1748736237534,0.31265725,104610.0,104600.0,0.35960596]
[1748736237947,0.31265725,104610.0,104600.0,0.35960597]
[1748736238304,0.2935389,104610.0,104600.0,0.13972148]
[1748736238476,0.2935389,104610.0,104600.0,0.33152524]
[1748736238708,0.2935389,104610.0,104600.0,0.34048257]
[1748736239027,0.2935389,104610.0,104600.0,0.32316326]
[1748736239243,0.2935389,104610.0,104600.0,0.34108289]
[1748736239648,0.2935389,104610.0,104600.0,0.33212307]
[1748736239852,0.2935389,104610.0,104600.0,0.32316326]
[1748736240601,0.2935389,104610.0,104600.0,0.11283833]
[1748736241344,0.2935389,104610.0,104600.0,0.3404825]
[1748736241548,0.2935389,104610.0,104600.0,0.31360304]
[1748736241687,0.2935389,104610.0,104600.0,0.11283833]
[1748736241887,0.2935389,104610.0,104600.0,0.31360313]
[1748736242690,0.2935389,104610.0,104600.0,0.13135837]
[1748736242921,0.2935389,104610.0,104600.0,0.11283833]
[1748736243297,0.2935389,104610.0,104600.0,0.12239855]
[1748736243725,0.2935389,104610.0,104600.0,0.13135837]
[1748736244076,0.2935389,104610.0,104600.0,0.13135836]
[1748736244295,0.2935389,104610.0,104600.0,0.12239855]
[1748736245132,0.2935389,104610.0,104600.0,0.13135836]
[1748736245356,0.2935389,104610.0,104600.0,0.11283833]
[1748736245815,0.2935389,104610.0,104600.0,0.13075797]
[1748736246129,0.2935389,104610.0,104600.0,0.13075796]
[1748736246351,0.2935389,104610.0,104600.0,0.11283833]
[1748736246523,0.2935389,104610.0,104600.0,0.13075797]
[1748736246761,0.2935389,104610.0,104600.0,0.11283833]
[1748736247113,0.2935389,104610.0,104600.0,0.31360304]
[1748736247638,0.2935389,104610.0,104600.0,0.32256285]
[1748736247872,0.2935389,104610.0,104600.0,0.34048248]
[1748736248091,0.2935389,104610.0,104600.0,0.31360304]
[1748736248495,0.2935389,104610.0,104600.0,0.32256285]
[1748736248699,0.2935389,104610.0,104600.0,0.11283833]
[1748736248825,0.2935389,104610.0,104600.0,0.12179814]
[1748736249035,0.2935389,104610.0,104600.0,0.11283833]
[1748736249702,0.2935389,104610.0,104600.0,0.13971777]
[1748736249906,0.2935389,104610.0,104600.0,0.12179814]
[1748736250110,0.2935389,104610.0,104600.0,0.11283833]
[1748736250959,0.2935389,104610.0,104600.0,0.33152277]
[1748736251088,0.2935389,104610.0,104600.0,0.31360313]
[1748736251488,0.2935389,104610.0,104600.0,0.3410828]
[1748736251740,0.2935389,104610.0,104600.0,0.11283833]
[1748736251946,0.2935389,104610.0,104600.0,0.12239855]
[1748736252143,0.2935389,104610.0,104600.0,0.31360313]
[1748736252359,0.2935389,104610.0,104600.0,0.32256294]
[1748736252579,0.2935389,104610.0,104600.0,0.13075796]
[1748736252795,0.2935389,104610.0,104600.0,0.11283833]
[1748736253360,0.6335389,104610.0,104600.0,0.11283833]
[1748736253774,0.64807975,104610.0,104600.0,0.13971971]
[1748736254056,0.64807975,104610.0,104600.0,0.12179876]
[1748736254280,0.64807975,104610.0,104600.0,0.13075928]
[1748736254506,0.64807975,104610.0,104600.0,0.11283833]
[1748736254721,0.64807975,104610.0,104600.0,0.13075922]
[1748736254722,0.62507975,104610.0,104600.0,0.13075922]
[1748736254915,0.62507975,104610.0,104600.0,0.11283833]
[1748736255131,0.62507975,104610.0,104600.0,0.13075946]
[1748736255368,0.62507975,104610.0,104600.0,0.12179889]
[1748736255616,0.62507975,104610.0,104600.0,0.11283833]
[1748736255803,1.00746975,104610.0,104600.0,0.13972004]
[1748736256020,1.00746975,104610.0,104600.0,0.11283833]
[1748736256740,1.00746975,104610.0,104600.0,0.1217989]
[1748736256977,1.00746975,104610.0,104600.0,0.13075947]
[1748736257206,1.00746975,104610.0,104600.0,0.12652892]
[1748736257405,1.00746975,104610.0,104600.0,0.13548957]
[1748736257940,1.00746975,104610.0,104600.0,0.12652899]
[1748736258118,1.00746975,104610.0,104600.0,0.11756838]
[1748736258273,1.00746975,104610.0,104600.0,0.12652899]
[1748736258659,1.00746975,104610.0,104600.0,0.11756838]
[1748736259119,1.00746975,104610.0,104600.0,0.12652899]
[1748736259352,1.00746975,104610.0,104600.0,0.13548971]
[1748736259576,1.00746975,104610.0,104600.0,0.10860778]
[1748736259977,1.00746975,104610.0,104600.0,0.13548973]
[1748736260220,1.00746975,104610.0,104600.0,0.10860778]
[1748736260422,1.00746975,104610.0,104600.0,0.13549004]
[1748736260625,1.00746975,104610.0,104600.0,0.10860778]
[1748736260797,1.00746975,104610.0,104600.0,0.11756856]
[1748736261004,1.00746975,104610.0,104600.0,0.10860778]
[1748736261617,1.00746975,104610.0,104600.0,0.11756857]
[1748736261812,1.00746975,104610.0,104600.0,0.10360778]
[1748736262216,1.00746975,104610.0,104600.0,0.10560778]
[1748736262511,1.00746975,104610.0,104600.0,0.10060778]
[1748736262702,1.02266975,104610.0,104600.0,0.10060778]
[1748736263232,1.03806975,104610.0,104600.0,0.10956857]
[1748736263436,1.03806975,104610.0,104600.0,0.10260778]
[1748736263926,1.03806975,104610.0,104600.0,0.14741173]
[1748736264141,1.03806975,104610.0,104600.0,0.11156858]
[1748736264363,1.03806975,104610.0,104600.0,0.10260778]
[1748736264826,1.03806975,104610.0,104600.0,0.12948892]
[1748736265058,1.03806975,104610.0,104600.0,0.12052854]
[1748736265277,1.03806975,104610.0,104600.0,0.10260778]
[1748736265737,1.03806975,104610.0,104600.0,0.11156841]
[1748736265968,1.03806975,104610.0,104600.0,0.11156877]
[1748736266186,1.03806975,104610.0,104600.0,0.10260778]
[1748736266430,1.03806975,104610.0,104600.0,0.10060778]
[1748736266678,1.10398871,104610.0,104600.0,0.09860778]
[1748736266922,1.12318565,104610.0,104600.0,0.09860778]
[1748736267146,1.21029687,104610.0,104600.0,0.09860778]
[1748736267375,1.21029687,104610.0,104600.0,0.09960778]
[1748736268070,1.10258565,104610.0,104600.0,0.09960778]
[1748736268546,1.10558565,104610.0,104600.0,0.09860778]
[1748736268773,1.10758565,104610.0,104600.0,0.09860778]
[1748736269458,1.10755991,104610.0,104600.0,0.09860778]
[1748736270267,1.1075574,104610.0,104600.0,0.09860778]
[1748736270969,1.1362714,104610.0,104600.0,0.09860778]
[1748736273293,1.07038069,104610.0,104600.0,0.09860778]
[1748736273513,1.45286069,104610.0,104600.0,0.09860778]
[1748736273741,1.51872771,104610.0,104600.0,0.09860778]
[1748736273972,1.51880771,104610.0,104600.0,0.09860778]
[1748736274197,1.44298069,104610.0,104600.0,0.09860778]
[1748736274908,1.41426669,104610.0,104600.0,0.09860778]
[1748736275561,1.44496669,104610.0,104600.0,0.09860778]
[1748736277087,1.15208669,104610.0,104600.0,0.09860778]
[1748736277301,1.44508669,104610.0,104600.0,0.09860778]
[1748736278150,1.85812669,104610.0,104600.0,0.09860778]
[1748736278765,1.47540669,104610.0,104600.0,0.09860778]
[1748736278939,1.85800669,104610.0,104600.0,0.09860778]
[1748736281762,1.95051791,104610.0,104600.0,0.09860778]
[1748736282590,1.85800669,104610.0,104600.0,0.09860778]
[1748736285760,1.84300669,104610.0,104600.0,0.09860778]
[1748736286007,1.82730669,104610.0,104600.0,0.09860778]
[1748736286412,1.82834669,104610.0,104600.0,0.09860778]
[1748736292187,1.82834669,104610.0,104600.0,0.09360778]
[1748736292360,1.92085791,104610.0,104600.0,0.09360778]
[1748736294382,1.82634669,104610.0,104600.0,0.09360778]
[1748736297143,1.82634669,104610.0,104600.0,0.005]
[1748736297144,1.84132284,104610.0,104600.0,0.005]
[1748736297369,0.55034451,104590.0,104580.0,0.0158476]
[1748736297570,0.74850132,104590.0,104580.0,0.01594063]
[1748736297775,1.13089132,104590.0,104580.0,0.01594063]
[1748736300059,1.13089132,104590.0,104580.0,0.01694063]
[1748736300215,1.14045351,104590.0,104580.0,0.01694063]
[1748736301308,1.05029351,104590.0,104580.0,0.01694063]
[1748736301842,1.43389351,104590.0,104580.0,0.01694063]
[1748736302593,1.43150357,104590.0,104580.0,0.01694063]
[1748736303224,1.43194357,104590.0,104580.0,0.01694063]
[1748736305851,1.13806357,104590.0,104580.0,0.01694063]
[1748736306065,0.83736539,104590.0,104580.0,0.23686684]
[1748736306275,0.84692616,104590.0,104580.0,0.23686684]
[1748736306480,0.4878048,104590.0,104580.0,0.23686684]
[1748736306691,0.50692644,104590.0,104580.0,0.23686684]
[1748736306907,0.84692644,104590.0,104580.0,0.23686684]
[1748736307530,0.85648749,104590.0,104580.0,0.23686684]
[1748736307745,1.04771036,104590.0,104580.0,0.22730543]
[1748736307948,1.04771036,104590.0,104580.0,0.23686703]
[1748736308358,0.85648749,104590.0,104580.0,0.25598994]
[1748736308877,0.76063319,104590.0,104580.0,0.25598994]
[1748736309365,0.95185606,104590.0,104580.0,0.24642853]
[1748736310050,0.76063319,104590.0,104580.0,0.25598994]
[1748736310245,0.77019433,104590.0,104580.0,0.25598994]
[1748736310497,0.75107214,104590.0,104580.0,0.25598994]
[1748736310964,0.76063319,104590.0,104580.0,0.25598994]
[1748736311875,0.72239,104590.0,104580.0,0.25598994]
[1748736312119,0.72239,104590.0,104580.0,0.34614994]
[1748736312120,0.38239,104590.0,104580.0,0.34614994]
[1748736314517,0.38239,104590.0,104580.0,0.3640446]
[1748736314762,0.38239,104590.0,104580.0,0.34614994]
[1748736315727,0.34139,104590.0,104580.0,0.3640446]
[1748736315905,0.34139,104590.0,104580.0,0.36404459]
[1748736316114,0.34139,104590.0,104580.0,0.34614994]
[1748736316244,0.34139,104590.0,104580.0,0.36404459]
[1748736316455,0.34139,104590.0,104580.0,0.34614994]
[1748736316650,0.34139,104590.0,104580.0,0.36404453]
[1748736317065,0.34139,104590.0,104580.0,0.34614994]
[1748736317285,0.34139,104590.0,104580.0,0.64090994]
[1748736317837,0.35095032,104590.0,104580.0,0.64090994]
[1748736318051,0.34139,104590.0,104580.0,0.64090994]
[1748736318642,0.34139,104590.0,104580.0,0.66303619]
[1748736318843,0.34139,104590.0,104580.0,0.26022106]
[1748736319063,0.36051109,104590.0,104580.0,0.26022106]
[1748736319235,0.37007195,104590.0,104580.0,0.64586106]
[1748736319576,0.38919396,104590.0,104580.0,0.62673815]
[1748736319724,0.37963355,104590.0,104580.0,0.62669815]
[1748736319929,0.37963355,104590.0,104580.0,0.63625965]
[1748736320199,0.56129537,104590.0,104580.0,0.65415548]
[1748736320400,0.56129537,104590.0,104580.0,0.22197486]
[1748736320604,0.54217383,104590.0,104580.0,0.40673175]
[1748736320808,0.54217383,104590.0,104580.0,0.6260451]
[1748736321012,0.54217383,104590.0,104580.0,0.62543173]
[1748736321222,0.54217383,104590.0,104580.0,0.60753486]
[1748736322484,0.54217383,104590.0,104580.0,0.61709673]
[1748736322807,0.50117383,104590.0,104580.0,0.61709673]
[1748736323002,0.50117383,104590.0,104580.0,0.32474346]
[1748736323151,0.50117383,104590.0,104580.0,0.3253738]
[1748736323586,0.50117383,104590.0,104580.0,0.52617691]
[1748736324025,0.50117383,104590.0,104580.0,0.53573869]
[1748736324215,0.50117383,104590.0,104580.0,0.25003027]
[1748736324422,0.50117383,104590.0,104580.0,0.26789339]
[1748736324625,0.50117383,104590.0,104580.0,0.26789352]
[1748736324804,0.50117383,104590.0,104580.0,0.53565878]
[1748736325367,0.50117383,104590.0,104580.0,0.56245385]
[1748736325495,0.50117383,104590.0,104580.0,0.54459052]
[1748736325697,0.50117383,104590.0,104580.0,0.53565878]
[1748736326528,0.50117383,104590.0,104580.0,0.51653495]
[1748736326715,0.50117383,104590.0,104580.0,0.52609682]
[1748736327172,0.50117383,104590.0,104580.0,0.54394645]
[1748736327397,0.50117383,104590.0,104580.0,0.53502163]
[1748736327636,0.50117383,104590.0,104580.0,0.52609682]
[1748736327859,0.50117383,104590.0,104580.0,0.54522029]
[1748736328268,0.50117383,104590.0,104580.0,0.56305084]
[1748736328450,0.50117383,104590.0,104580.0,0.54522029]
[1748736329233,0.50117383,104590.0,104580.0,0.55418284]
[1748736329434,0.50117383,104590.0,104580.0,0.55478189]
[1748736329634,0.32907278,104590.0,104580.0,0.54521984]
[1748736329807,0.28807278,104590.0,104580.0,0.54521984]
[1748736330002,0.28807278,104590.0,104580.0,0.55478125]
[1748736330415,0.28807278,104590.0,104580.0,0.57270624]
[1748736330640,0.28807278,104590.0,104580.0,0.55478125]
[1748736330929,0.26895041,104590.0,104580.0,0.57270624]
[1748736331152,0.25939,104590.0,104580.0,0.55478125]
[1748736331405,0.27851082,104590.0,104580.0,0.55478125]
[1748736331593,0.27851082,104590.0,104580.0,0.57270599]
[1748736331792,0.27851082,104590.0,104580.0,0.55478125]
[1748736332225,0.27851082,104590.0,104580.0,0.57270564]
[1748736332735,0.27851082,104590.0,104580.0,0.55478125]
[1748736332949,0.27851082,104590.0,104580.0,0.57270562]
[1748736333294,0.27851082,104590.0,104580.0,0.86580558]
[1748736333502,0.27851082,104590.0,104580.0,0.86580528]
[1748736333912,0.27851082,104590.0,104580.0,0.86580527]
[1748736334122,0.27851082,104590.0,104580.0,0.86578362]
[1748736334330,0.27851082,104590.0,104580.0,0.86478362]
[1748736334516,0.27851082,104590.0,104580.0,0.86478369]
[1748736334730,0.27851082,104590.0,104580.0,0.86678369]
[1748736334927,0.27851082,104590.0,104580.0,0.86878369]
[1748736335190,0.27851082,104590.0,104580.0,0.85088125]
[1748736335752,0.27851082,104590.0,104580.0,0.86878816]
[1748736335978,0.27851082,104590.0,104580.0,0.85088125]
[1748736336803,0.27851082,104590.0,104580.0,0.86878816]
[1748736336954,0.23751082,104590.0,104580.0,0.85088125]
[1748736337589,0.23751082,104590.0,104580.0,0.86878816]
[1748736337786,0.23751082,104590.0,104580.0,0.85088125]
[1748736337999,0.23751082,104590.0,104580.0,0.86878816]
[1748736338297,0.23751082,104590.0,104580.0,0.85088125]
[1748736338657,0.2470715,104590.0,104580.0,0.85088125]
[1748736339100,0.2470715,104590.0,104580.0,0.86878816]
[1748736339303,0.2470715,104590.0,104580.0,0.85088125]
[1748736339550,0.2470715,104590.0,104580.0,0.86878816]
[1748736339990,0.2470715,104590.0,104580.0,0.85088125]
[1748736342378,0.2470715,104590.0,104580.0,0.86878816]
[1748736342583,0.2470715,104590.0,104580.0,0.85088125]
[1748736342768,0.2470715,104590.0,104580.0,0.86878816]
[1748736343191,0.2470715,104590.0,104580.0,0.85088125]
[1748736343393,0.2470715,104590.0,104580.0,0.83428125]
[1748736343394,0.25663227,104590.0,104580.0,0.83428125]
[1748736343593,0.27193227,104590.0,104580.0,0.80108125]
[1748736343797,0.26619332,104590.0,104580.0,0.45772125]
[1748736344015,0.28239313,104590.0,104580.0,0.72140125]
[1748736344350,0.26619313,104590.0,104580.0,0.69950125]
[1748736344938,0.22519313,104590.0,104580.0,0.69950125]
[1748736345148,0.22519377,104590.0,104580.0,0.69950125]
[1748736345506,0.41641728,104590.0,104580.0,0.68993984]
[1748736345687,0.21563327,104590.0,104580.0,0.69950125]
[1748736346449,0.21563327,104590.0,104580.0,0.71740864]
[1748736346689,0.21563327,104590.0,104580.0,0.69950125]
[1748736347496,0.20607231,104590.0,104580.0,0.71740864]
[1748736347697,0.19651145,104590.0,104580.0,0.69950125]
[1748736347904,0.20607241,104590.0,104580.0,0.69950125]
[1748736348686,0.19651109,104590.0,104580.0,0.69950125]
[1748736349433,0.19651109,104590.0,104580.0,0.71740842]
[1748736349581,0.20607186,104590.0,104580.0,0.69950125]
[1748736349778,0.21563282,104590.0,104580.0,0.69950125]
[1748736349993,0.20607186,104590.0,104580.0,0.71740854]
[1748736350276,0.20607186,104590.0,104580.0,0.69950125]
[1748736350482,0.21563282,104590.0,104580.0,0.69950125]
[1748736350700,0.20607186,104590.0,104580.0,0.69950125]
[1748736351255,0.20607186,104590.0,104580.0,0.71740858]
[1748736351457,0.20607186,104590.0,104580.0,0.69950125]
[1748736352083,0.16507186,104590.0,104580.0,0.69950125]
[1748736353122,0.16507186,104590.0,104580.0,0.71742453]
[1748736353326,0.16507186,104590.0,104580.0,0.69950125]
[1748736355510,0.17463282,104590.0,104580.0,0.69902125]
[1748736356134,0.17463282,104590.0,104580.0,0.71694464]
[1748736356340,0.17463282,104590.0,104580.0,0.69902125]
[1748736356776,0.36585569,104590.0,104580.0,0.39505984]
[1748736356971,0.36585642,104590.0,104580.0,0.40464153]
[1748736357156,0.36585642,104590.0,104580.0,0.40464154]
[1748736357398,0.36585642,104590.0,104580.0,0.40464156]
[1748736357808,0.17463355,104590.0,104580.0,0.41419632]
[1748736358043,0.17643026,104590.0,104580.0,0.41419632]
[1748736358792,0.15730816,104590.0,104580.0,0.1198766]
[1748736359007,0.12407241,104590.0,104580.0,0.1198766]
[1748736359218,0.13543017,104590.0,104580.0,0.11987658]
[1748736359433,0.13543017,104590.0,104580.0,0.11987659]
[1748736359649,0.33621418,104590.0,104580.0,0.09239815]
[1748736359868,0.32485679,104590.0,104580.0,0.09239815]
[1748736360085,0.32485679,104590.0,104580.0,0.10195965]
[1748736360302,0.32485679,104590.0,104580.0,0.1198767]
[1748736360525,0.32485679,104590.0,104580.0,0.10195965]
[1748736361202,0.32485679,104590.0,104580.0,0.1178767]
[1748736361395,0.32485679,104590.0,104580.0,0.09995965]
[1748736361867,0.32485679,104590.0,104580.0,0.1178767]
[1748736362072,0.32485679,104590.0,104580.0,0.10952106]
[1748736362304,0.32485679,104590.0,104580.0,0.12743811]
[1748736362516,0.13363392,104590.0,104580.0,0.10952106]
[1748736362748,0.13543063,104590.0,104580.0,0.12743811]
[1748736363044,0.13543063,104590.0,104580.0,0.10952106]
[1748736363276,0.13543063,104590.0,104580.0,0.12743811]
[1748736363493,0.13543063,104590.0,104580.0,0.10952106]
[1748736363929,0.3266535,104590.0,104580.0,0.09039824]
[1748736364183,0.31529602,104590.0,104580.0,0.09875435]
[1748736364410,0.31529602,104590.0,104580.0,0.09039851]
[1748736364639,0.31529602,104590.0,104580.0,0.11787778]
[1748736364855,0.31529602,104590.0,104580.0,0.09996011]
[1748736365542,0.31529602,104590.0,104580.0,0.11788407]
[1748736365755,0.31529602,104590.0,104580.0,0.09996011]
[1748736366195,0.27429602,104590.0,104580.0,0.09996011]
[1748736366622,0.27429602,104590.0,104580.0,0.11788407]
[1748736366863,0.27429602,104590.0,104580.0,0.09996011]
[1748736367914,0.27429602,104590.0,104580.0,0.12744557]
[1748736368143,0.27429602,104590.0,104580.0,0.10952161]
[1748736369420,0.06395068,104590.0,104580.0,0.10952161]
[1748736369675,0.06395068,104590.0,104580.0,0.10952106]
[1748736369676,0.08486876,104590.0,104580.0,0.10952106]
[1748736369907,0.08486876,104590.0,104580.0,0.12744502]
[1748736370579,0.08486876,104590.0,104580.0,0.12744242]
[1748736371543,0.08486876,104590.0,104580.0,0.12744244]
[1748736371758,0.08486876,104590.0,104580.0,0.10952106]
[1748736371980,0.06574712,104590.0,104580.0,0.12744244]
[1748736372219,0.08486839,104590.0,104580.0,0.12744244]
[1748736372441,0.05439,104590.0,104580.0,0.12744242]
[1748736372660,0.0639505,104590.0,104580.0,0.12744238]
[1748736372889,0.06395041,104590.0,104580.0,0.12744238]
[1748736373355,0.02295041,104590.0,104580.0,0.12744272]
[1748736373792,0.02295041,104590.0,104580.0,0.12744271]
[1748736374231,0.02295041,104590.0,104580.0,0.1364032]
[1748736374454,0.01339,104590.0,104580.0,0.1364032]
[1748736374715,0.01339,104590.0,104580.0,0.11848165]
[1748736374937,0.01339,104590.0,104580.0,0.13640254]
[1748736375159,0.01339,104590.0,104580.0,0.10952106]
[1748736375354,0.01339,104590.0,104580.0,0.11848158]
[1748736375572,0.01339,104590.0,104580.0,0.11848153]
[1748736375772,0.01339,104590.0,104580.0,0.10952106]
[1748736375989,0.01339,104590.0,104580.0,0.13640262]
[1748736376515,0.01339,104590.0,104580.0,0.13639888]
[1748736376716,0.01339,104590.0,104580.0,0.11847971]
[1748736376911,0.01339,104590.0,104580.0,0.12743836]
[1748736377185,0.01339,104590.0,104580.0,0.12743849]
[1748736377330,0.01339,104590.0,104580.0,0.10952106]
[1748736377544,0.02295041,104590.0,104580.0,0.1363972]
[1748736377770,0.01339,104590.0,104580.0,0.1363972]
[1748736378133,0.02295032,104590.0,104580.0,0.1363972]
[1748736378328,0.02295032,104590.0,104580.0,0.10952106]
[1748736378642,0.02295032,104590.0,104580.0,0.136396]
[1748736378871,0.02295032,104590.0,104580.0,0.11847937]
[1748736379079,0.02295032,104590.0,104580.0,0.11847933]
[1748736379312,0.02295032,104590.0,104580.0,0.13639588]
[1748736379529,0.02295032,104590.0,104580.0,0.13639587]
[1748736379953,0.02295032,104590.0,104580.0,0.10952106]
[1748736380167,0.03251073,104590.0,104580.0,0.13639596]
[1748736380383,0.55988492,104600.0,104590.0,0.21034469]
[1748736380384,0.55139565,104600.0,104590.0,0.21034469]
[1748736380604,0.55139565,104600.0,104590.0,0.23721911]
[1748736381062,0.55139565,104600.0,104590.0,0.21034469]
[1748736381285,0.90514553,104600.0,104590.0,0.22765859]
[1748736381502,0.90514553,104600.0,104590.0,0.2372198]
[1748736381721,0.90514553,104600.0,104590.0,0.02687474]
[1748736382141,0.90514553,104600.0,104590.0,0.03643588]
[1748736382431,0.90514553,104600.0,104590.0,0.02747823]
[1748736382657,0.90514553,104600.0,104590.0,0.00956114]
[1748736382848,0.90514553,104600.0,104590.0,0.23722069]
[1748736383794,0.90514553,104600.0,104590.0,0.23782311]
[1748736384000,0.90514553,104600.0,104590.0,0.24678165]
[1748736384216,0.90514553,104600.0,104590.0,0.24678222]
[1748736384693,0.90514553,104600.0,104590.0,0.00956114]
[1748736384905,0.90514553,104600.0,104590.0,0.03643734]
[1748736385329,0.90514553,104600.0,104590.0,0.0268762]
[1748736385774,0.90514553,104600.0,104590.0,0.02687636]
[1748736385996,0.90514553,104600.0,104590.0,0.02687668]
[1748736386439,0.90514553,104600.0,104590.0,0.03643782]
[1748736386654,0.9148627,104600.0,104590.0,0.02747922]
[1748736386869,0.90514553,104600.0,104590.0,0.23722209]
[1748736387316,0.86414553,104600.0,104590.0,0.23722209]
[1748736387550,0.5736348,104600.0,104590.0,0.23722209]
[1748736387758,0.5736348,104600.0,104590.0,0.23722205]
[1748736388141,0.5736348,104600.0,104590.0,0.23722186]
[1748736388344,0.5736348,104600.0,104590.0,0.23722212]
[1748736389421,0.5736348,104600.0,104590.0,0.22826305]
[1748736390093,0.5736348,104600.0,104590.0,0.24618113]
[1748736390301,0.5736348,104600.0,104590.0,0.26409921]
[1748736390533,0.5736348,104600.0,104590.0,0.24618113]
[1748736390745,0.5736348,104600.0,104590.0,0.23662017]
[1748736390970,0.5736348,104600.0,104590.0,0.2640993]
[1748736391179,0.5736348,104600.0,104590.0,0.24618122]
[1748736391399,0.5736348,104600.0,104590.0,0.25514026]
[1748736391611,0.5736348,104600.0,104590.0,0.24618122]
[1748736392043,0.5736348,104600.0,104590.0,0.25574208]
[1748736392727,0.5736348,104600.0,104590.0,0.24618122]
[1748736392945,0.5736348,104600.0,104590.0,0.27305826]
[1748736393160,0.5736348,104600.0,104590.0,0.27305825]
[1748736393373,0.5736348,104600.0,104590.0,0.26409924]
[1748736393584,0.5736348,104600.0,104590.0,0.24618122]
[1748736393800,0.5736348,104600.0,104590.0,0.26409924]
[1748736394019,0.5736348,104600.0,104590.0,0.24618122]
[1748736394401,0.5326348,104600.0,104590.0,0.26409924]